bitfinex-derivatives/quotes_ETHF0:USTF0_20250316
["timestamp","ask_amount","ask_price","bid_price","bid_amount"]
[1742163366866,1.4273,1882.5,1882.4,2.21059284]
[1742163367061,2.27721,1882.5,1882.4,2.21059284]
[1742163367558,3.2078,1882.7,1882.4,3.48555284]
[1742163367860,3.2078,1882.9,1882.8,0.84978]
[1742163368258,4.05753,1882.9,1882.8,0.84978]
[1742163368458,5.49933,1882.9,1882.8,2.24288]
[1742163368661,4.6496,1882.9,1882.8,2.24288]
[1742163369051,5.49933,1882.9,1882.8,1.3931]
[1742163369262,5.49933,1882.9,1882.8,2.24288]
[1742163369868,4.6496,1882.9,1882.8,2.24288]
[1742163370168,5.49933,1882.9,1882.8,2.24288]
[1742163370358,4.6496,1882.9,1882.8,2.24288]
[1742163370562,1.4418,1882.9,1882.8,2.24288]
[1742163370867,5.49933,1882.9,1882.8,1.3931]
[1742163372172,0.84982,1882.7,1882.4,2.13285284]
[1742163372358,0.84982,1882.7,1882.6,0.84983]
[1742163372765,0.84982,1882.7,1882.6,2.24693]
[1742163373067,0.84982,1882.7,1882.6,2.24694]
[1742163373268,4.05757,1882.9,1882.7,0.84981]
[1742163373568,4.05753,1882.9,1882.8,2.17288]
[1742163373768,3.2078,1882.9,1882.8,2.17288]
[1742163374361,0.84978,1882.8,1882.6,3.20664]
[1742163374671,4.05756,1882.9,1882.7,0.84981]
[1742163374965,3.2078,1882.9,1882.8,0.84978]
[1742163377161,5.538,1883.1,1882.8,0.84978]
[1742163377364,5.538,1883.1,1883.0,0.84969]
[1742163377566,6.38764,1883.1,1883.0,0.84969]
[1742163377767,5.538,1883.1,1883.0,0.84969]
[1742163378072,6.38764,1883.1,1883.0,0.84969]
[1742163381473,5.538,1883.1,1883.0,0.84969]
[1742163381673,6.38764,1883.1,1883.0,0.84969]
[1742163382371,5.538,1883.1,1883.0,0.84969]
[1742163382574,6.38764,1883.1,1883.0,0.84969]
[1742163384073,5.538,1883.1,1883.0,0.84969]
[1742163384373,6.38764,1883.1,1883.0,0.84969]
[1742163384572,6.38768,1883.1,1883.0,0.84969]
[1742163384966,5.538,1883.1,1883.0,0.84969]
[1742163385166,6.38764,1883.1,1883.0,0.84969]
[1742163386377,5.538,1883.1,1883.0,0.84969]
[1742163386674,6.38764,1883.1,1883.0,0.84969]
[1742163386876,5.538,1883.1,1883.0,0.84969]
[1742163387068,0.84953,1883.4,1883.3,0.84955]
[1742163387275,5.65236284,1883.5,1883.1,0.84962]
[1742163387571,5.65236284,1883.5,1883.0,1.1756]
[1742163387572,0.84964,1883.1,1883.0,0.84966]
[1742163387770,4.05744,1883.1,1883.0,0.84966]
[1742163388164,4.05744,1883.1,1882.9,1.3235]
[1742163388165,0.84969,1883.0,1882.9,2.17319]
[1742163388370,3.8014,1883.0,1882.9,2.17319]
[1742163388572,4.5642,1883.1,1883.0,0.84969]
[1742163388775,4.5642,1883.1,1883.0,3.47909]
[1742163389168,5.6528,1883.4,1883.3,0.84955]
[1742163389778,0.00796284,1883.5,1883.4,0.84951]
[1742163390379,1.36436284,1883.5,1883.4,0.84951]
[1742163390966,1.36436284,1883.5,1883.4,4.39651]
[1742163391168,0.00796284,1883.5,1883.4,5.58791]
[1742163391671,1.3987,1883.8,1883.7,0.84937]
[1742163391872,1.3987,1883.8,1883.5,2.12357]
[1742163391873,4.6065,1883.8,1883.5,3.553]
[1742163392078,0.84937,1883.7,1883.5,4.926]
[1742163392379,0.84942,1883.6,1883.4,3.555]
[1742163392574,2.5439,1883.5,1883.4,5.77751]
[1742163392776,0.00796284,1883.7,1883.6,0.84937]
[1742163393371,1.40666284,1883.7,1883.6,2.22237]
[1742163394680,0.00796284,1883.7,1883.6,2.22237]
[1742163394975,1.4334,1884.0,1883.9,0.84928]
[1742163395683,1.4334,1884.0,1883.9,2.20388]
[1742163396573,1.4334,1884.0,1883.9,3.35198]
[1742163397777,0.00791141,1884.1,1884.0,0.84923]
[1742163397978,0.00791141,1884.1,1884.0,2.26443]
[1742163398882,1.39341141,1884.1,1884.0,2.26443]
[1742163400183,1.39341141,1884.1,1883.8,3.56]
[1742163400383,1.39341141,1884.1,1884.0,0.84923]
[1742163400979,2.24260141,1884.1,1883.9,2.30644]
[1742163401178,1.39341141,1884.1,1884.0,0.84923]
[1742163401382,0.00791141,1884.1,1884.0,0.84923]
[1742163402880,0.00791141,1884.1,1884.0,3.26073]
[1742163403179,0.00791141,1884.1,1884.0,8.96853]
[1742163403377,0.00791141,1884.1,1884.0,6.46853]
[1742163404675,0.00791141,1884.1,1884.0,2.03963]
[1742163405079,0.00791141,1884.1,1884.0,0.84923]
[1742163405284,0.85710141,1884.1,1883.7,3.28703]
[1742163405586,2.3691,1884.0,1883.9,0.84928]
[1742163408284,0.00791141,1884.1,1884.0,2.25943]
[1742163413279,0.85710141,1884.1,1884.0,0.84923]
[1742163413685,0.00791141,1884.1,1884.0,0.84923]
[1742163413895,0.85710141,1884.1,1884.0,0.84923]
[1742163414092,0.00791141,1884.1,1884.0,0.84923]
[1742163414998,0.85710141,1884.1,1884.0,0.84923]
[1742163415196,0.00791141,1884.1,1884.0,0.84923]
[1742163415684,0.85710141,1884.1,1884.0,0.84923]
[1742163416090,0.00791141,1884.1,1884.0,0.84923]
[1742163416696,0.00791141,1884.1,1884.0,2.12033]
[1742163417484,0.00791141,1884.1,1884.0,5.32813]
[1742163418192,0.00791141,1884.1,1884.0,2.12033]
[1742163418985,0.00791141,1884.1,1884.0,5.32813]
[1742163419789,0.00791141,1884.1,1884.0,2.12033]
[1742163421289,0.00791141,1884.1,1884.0,5.32813]
[1742163421496,0.00791141,1884.1,1884.0,7.82813]
[1742163421889,0.00791141,1884.1,1884.0,5.32813]
[1742163423997,4.05664,1884.9,1884.2,4.24569]
[1742163424190,2.5959,1884.8,1884.7,0.84888]
[1742163426092,1.3726,1884.8,1884.7,0.84888]
[1742163426296,1.1839,1884.9,1884.8,0.84887]
[1742163426495,1.1839,1884.9,1884.8,2.08387]
[1742163426696,5.24053,1884.9,1884.8,0.84887]
[1742163426887,5.7986,1884.9,1884.8,0.84887]
[1742163427095,2.5908,1884.9,1884.8,0.84887]
[1742163427490,5.7986,1884.9,1884.8,0.84887]
[1742163428098,2.5908,1884.9,1884.8,0.84887]
[1742163428897,2.5908,1884.9,1884.8,2.03627]
[1742163429094,3.2078,1885.1,1885.0,0.84878]
[1742163429994,2.7061,1885.1,1885.0,2.19658]
[1742163430797,5.9139,1885.1,1885.0,2.19658]
[1742163431097,2.7061,1885.1,1885.0,0.84878]
[1742163431307,6.76265,1885.1,1884.9,0.8488]
[1742163431494,2.4961,1885.0,1884.9,0.84883]
[1742163431996,2.4961,1885.0,1884.8,1.4524]
[1742163431997,2.4961,1885.0,1884.8,0.84883]
[1742163432200,5.37127,1884.9,1884.7,4.3969]
[1742163432400,1.3146,1884.8,1884.7,4.3969]
[1742163432609,2.5926,1884.8,1884.7,4.3969]
[1742163432896,2.5926,1884.8,1884.7,5.8493]
[1742163433095,2.5926,1884.8,1884.7,4.3969]
[1742163433298,3.44147,1884.8,1884.6,0.00796284]
[1742163433502,4.5224,1884.7,1884.6,0.85690284]
[1742163433898,5.37132,1884.7,1884.6,0.85692284]
[1742163434198,0.84898,1884.6,1884.5,0.84897]
[1742163434505,3.52648,1884.6,1884.5,0.84897]
[1742163434905,2.6775,1884.6,1884.5,0.84897]
[1742163436905,2.6775,1884.6,1884.5,4.39797]
[1742163437203,3.21576284,1884.7,1884.6,0.84896]
[1742163437402,1.39896284,1884.7,1884.6,2.29266]
[1742163438603,0.00796284,1884.7,1884.6,2.29266]
[1742163438803,4.5988,1885.0,1884.9,0.84883]
[1742163439105,4.4516,1885.0,1884.9,4.39983]
[1742163439500,3.2078,1885.0,1884.9,4.39983]
[1742163440206,3.2078,1885.0,1884.9,5.77823]
[1742163440702,4.4516,1885.2,1885.1,0.84874]
[1742163442507,0.84876,1885.1,1885.0,0.84878]
[1742163442704,0.84876,1885.1,1884.9,3.548]
[1742163442900,1.2442,1885.0,1884.9,4.3968]
[1742163445204,4.4516,1885.2,1885.1,0.84874]
[1742163447809,4.4516,1885.2,1884.9,3.548]
[1742163448007,4.4516,1885.2,1885.1,0.84874]
[1742163449212,1.2438,1885.2,1885.1,0.84874]
[1742163450110,3.2078,1885.4,1885.2,2.12174]
[1742163450307,4.4426,1885.4,1885.3,0.84865]
[1742163450509,4.4426,1885.4,1885.3,2.22745]
[1742163451007,3.2078,1885.6,1885.5,0.84856]
[1742163451710,4.05631,1885.6,1885.5,0.84856]
[1742163452013,4.05631,1885.6,1885.4,0.85655284]
[1742163452014,3.2078,1885.6,1885.4,0.85655284]
[1742163452212,1.2031,1885.5,1885.4,0.85655284]
[1742163452815,2.05166,1885.5,1885.4,0.85655284]
[1742163455010,2.05166,1885.5,1885.4,0.00796284]
[1742163455208,0.84873,1885.2,1885.1,0.8487]
[1742163455409,4.0565,1885.2,1885.1,0.84874]
[1742163455608,0.84878,1885.1,1885.0,0.84876]
[1742163456806,4.06448284,1885.2,1885.1,0.84874]
[1742163457203,3.21576284,1885.2,1885.1,0.84874]
[1742163457408,0.00796284,1885.2,1885.1,0.84874]
[1742163457604,3.21576284,1885.2,1885.1,2.23964]
[1742163458011,0.00796284,1885.2,1885.1,5.78064]
[1742163460623,0.00796284,1885.2,1885.1,2.23964]
[1742163460821,0.00796284,1885.2,1885.1,5.77964]
[1742163461121,1.35426284,1885.2,1885.1,5.77964]
[1742163462827,2.20295284,1885.2,1885.1,4.9309]
[1742163463134,0.84874,1885.1,1885.0,0.84874]
[1742163463326,3.35104,1885.1,1885.0,0.84874]
[1742163463741,2.5023,1885.1,1885.0,0.84874]
[1742163464238,2.5023,1885.1,1885.0,2.28774]
[1742163465444,3.35105,1885.1,1884.9,0.85675284]
[1742163465640,1.4261,1885.0,1884.9,0.85675284]
[1742163466036,1.4261,1885.0,1884.9,0.00796284]
[1742163466342,2.27488,1885.0,1884.9,0.00796284]
[1742163466537,3.53968,1885.0,1884.9,0.00796284]
[1742163466938,2.6909,1885.0,1884.9,0.85679284]
[1742163467338,3.53968,1885.0,1884.9,0.85679284]
[1742163467545,2.6909,1885.0,1884.9,0.85679284]
[1742163467745,3.53968,1885.0,1884.9,0.85679284]
[1742163467946,2.6909,1885.0,1884.9,0.85679284]
[1742163468244,2.6909,1885.0,1884.9,2.23829284]
[1742163469944,2.6909,1885.0,1884.9,3.42159284]
[1742163470243,2.6909,1885.0,1884.9,2.23829284]
[1742163470643,3.53968,1885.0,1884.9,2.23829284]
[1742163470845,3.53968,1885.0,1884.9,0.85679284]
[1742163471540,6.74748,1885.0,1884.9,0.00796284]
[1742163472042,0.84896,1884.7,1884.6,0.84893]
[1742163472242,0.84896,1884.7,1884.4,2.12262]
[1742163472243,5.3302,1884.7,1884.4,0.84902]
[1742163472438,5.84026,1884.6,1884.3,0.84907]
[1742163472639,3.2078,1884.4,1884.3,0.84907]
[1742163472838,4.05685,1884.4,1884.3,0.84907]
[1742163473039,5.44065,1884.4,1884.3,0.84907]
[1742163474346,0.8491,1884.3,1884.2,0.85707284]
[1742163474542,3.4557,1884.3,1884.2,0.85707284]
[1742163474746,3.4557,1884.3,1884.2,0.00796284]
[1742163475848,3.4557,1884.3,1884.2,0.85710284]
[1742163477643,3.4557,1884.3,1884.2,0.00796284]
[1742163477847,3.4557,1884.3,1883.8,0.8493]
[1742163477848,2.12294,1884.2,1883.8,0.8493]
[1742163478152,0.84933,1883.8,1883.7,5.81205]
[1742163478351,4.05713,1883.8,1883.7,1.4347]
[1742163478652,2.5532,1883.9,1883.8,0.84933]
[1742163479152,3.40248,1883.9,1883.8,0.84933]
[1742163479847,0.84933,1883.8,1883.7,0.85730284]
[1742163480150,5.40743,1883.8,1883.7,0.00796284]
[1742163481549,5.40743,1883.8,1883.7,0.85733284]
[1742163481944,1.3503,1883.8,1883.7,0.85733284]
[1742163482453,2.19963,1883.8,1883.7,0.85733284]
[1742163482752,4.5581,1883.8,1883.7,0.85733284]
[1742163484157,5.40743,1883.8,1883.7,0.00796284]
[1742163484353,4.5581,1883.8,1883.7,0.85733284]
[1742163485854,1.3503,1883.8,1883.7,0.85733284]
[1742163489649,3.21576284,1884.0,1883.9,0.84928]
[1742163489843,4.53826284,1884.0,1883.9,0.84928]
[1742163490557,1.33046284,1884.0,1883.9,0.84928]
[1742163490953,0.00796284,1884.0,1883.9,0.84928]
[1742163492157,3.2078,1884.5,1884.4,0.84905]
[1742163492749,4.5596,1884.5,1884.4,0.84905]
[1742163493350,5.40861,1884.5,1884.4,0.84905]
[1742163493950,4.5596,1884.5,1884.4,0.84905]
[1742163494151,4.5596,1884.5,1884.3,2.13168]
[1742163494448,0.8491,1884.3,1884.2,3.53]
[1742163494653,0.84914,1884.2,1884.1,0.84916]
[1742163494853,2.24654,1884.2,1884.1,0.84916]
[1742163496259,1.3974,1884.2,1884.1,0.84916]
[1742163497567,1.2223,1884.4,1884.3,0.8491]
[1742163497855,1.3974,1884.4,1884.3,0.8491]
[1742163498248,1.3974,1884.4,1884.3,2.2478]
[1742163499964,2.24645,1884.4,1884.3,2.2478]
[1742163500667,0.84916,1884.2,1883.9,3.2078]
[1742163500856,0.84919,1884.1,1884.0,4.3792]
[1742163501160,3.43419,1884.1,1884.0,5.8055]
[1742163501361,3.43419,1884.1,1884.0,2.2755]
[1742163501572,2.585,1884.1,1884.0,2.2755]
[1742163505169,1.4038,1884.1,1884.0,2.2755]
[1742163505464,1.4038,1884.1,1884.0,3.5286]
[1742163506862,5.6434,1884.3,1884.2,0.84914]
[1742163507261,2.4356,1884.3,1884.2,0.84914]
[1742163508163,3.7588,1884.3,1884.2,0.84914]
[1742163508569,4.6079,1884.3,1884.2,0.84914]
[1742163508767,3.7588,1884.3,1884.2,0.84914]
[1742163509068,4.6079,1884.3,1884.2,0.84914]
[1742163510070,3.7588,1884.3,1884.2,0.84914]
[1742163511072,6.9666,1884.3,1884.1,1.3758]
[1742163511278,1.3811,1884.2,1884.1,2.22496]
[1742163512182,0.84919,1884.1,1884.0,0.84919]
[1742163512559,2.23028,1884.2,1884.1,0.84919]
[1742163512764,1.3811,1884.2,1884.1,0.84919]
[1742163512965,2.23024,1884.2,1884.1,0.84919]
[1742163513571,1.3811,1884.2,1884.1,0.84919]
[1742163513869,3.2078,1884.5,1884.4,0.84905]
[1742163514070,4.6105,1884.5,1884.4,0.84905]
[1742163514872,4.6105,1884.5,1884.4,2.19125]
[1742163515370,0.84905,1884.4,1884.3,0.84906]
[1742163515575,3.45675,1884.4,1884.3,0.84906]
[1742163515775,3.45675,1884.4,1884.3,2.19126]
[1742163516068,2.6077,1884.4,1884.3,2.19126]
[1742163516265,1.4027,1884.4,1884.3,2.19126]
[1742163516465,2.38116284,1884.6,1884.5,0.84901]
[1742163516666,3.23012284,1884.6,1884.5,0.84901]
[1742163517670,4.61492284,1884.6,1884.5,0.84901]
[1742163519578,3.76596284,1884.6,1884.5,0.84901]
[1742163519765,4.61492284,1884.6,1884.5,0.84901]
[1742163521678,1.39276284,1884.6,1884.5,0.84901]
[1742163521873,1.39276284,1884.6,1884.5,2.00481]
[1742163522081,1.39276284,1884.6,1884.5,5.53381]
[1742163523270,1.39276284,1884.6,1884.5,6.98191]
[1742163523676,4.0566,1885.0,1884.9,0.84883]
[1742163523880,7.785,1885.0,1884.9,0.84883]
[1742163524177,7.78498,1885.0,1884.9,0.84883]
[1742163524381,6.9362,1885.0,1884.9,0.84883]
[1742163524580,3.2078,1885.2,1885.1,0.84874]
[1742163524883,4.5898,1885.2,1885.1,0.84874]
[1742163525384,4.5898,1885.2,1885.1,2.22094]
[1742163526187,2.35436284,1885.3,1885.2,0.84869]
[1742163526481,0.00796284,1885.3,1885.2,2.22089]
[1742163526882,1.43956284,1885.3,1885.2,2.22089]
[1742163529783,0.00796284,1885.3,1885.2,2.22089]
[1742163535291,1.25066284,1885.3,1885.2,5.74889]
[1742163535695,2.63306284,1885.3,1885.2,5.74889]
[1742163535995,3.48171284,1885.3,1885.2,0.84869]
[1742163536195,2.63306284,1885.3,1885.2,0.84869]
[1742163536693,3.48171284,1885.3,1885.2,0.84869]
[1742163540893,2.63306284,1885.3,1885.2,0.84869]
[1742163541193,3.48171284,1885.3,1885.2,0.84869]
[1742163542896,0.84874,1885.2,1885.1,0.84872]
[1742163543095,2.6589,1885.2,1885.1,0.84872]
[1742163543300,3.50759,1885.2,1885.1,2.26122]
[1742163543501,2.6589,1885.2,1885.1,2.26122]
[1742163544497,3.50759,1885.2,1885.1,2.26122]
[1742163545900,0.84874,1885.1,1885.0,4.38473284]
[1742163546097,0.84874,1885.1,1885.0,0.00796284]
[1742163546098,2.26414,1885.1,1885.0,0.00796284]
[1742163546995,0.84892,1884.7,1884.6,3.528]
[1742163547200,0.84901,1884.5,1884.4,2.28044]
[1742163547402,5.3302,1884.7,1884.4,2.28044]
[1742163547403,4.68849,1884.6,1884.5,0.84901]
[1742163547602,4.68849,1884.6,1884.5,2.28041]
[1742163548910,4.68849,1884.6,1884.5,0.84901]
[1742163550408,0.84901,1884.5,1884.4,0.00796284]
[1742163550605,5.42271,1884.5,1884.4,0.00796284]
[1742163552008,0.84919,1884.1,1884.0,2.1897]
[1742163552810,2.20009,1884.1,1884.0,1.3405]
[1742163553112,0.84923,1884.0,1883.9,0.84924]
[1742163553315,2.20013,1884.0,1883.9,2.27400284]
[1742163553909,2.12322,1883.9,1883.4,5.33146]
[1742163554111,0.8494,1883.7,1883.6,0.84937]
[1742163554612,2.5072,1883.7,1883.6,0.84937]
[1742163554813,2.5072,1883.7,1883.6,2.26617]
[1742163555016,0.84921,1884.1,1883.7,2.12343]
[1742163555315,1.3509,1884.0,1883.9,0.84928]
[1742163556215,0.84928,1883.9,1883.8,1.3291]
[1742163556415,0.84933,1883.8,1883.7,5.70644]
[1742163556721,3.41343,1883.8,1883.7,5.70644]
[1742163556906,0.84937,1883.7,1883.6,0.84939]
[1742163557113,2.23327,1883.7,1883.6,2.17849]
[1742163557310,1.3839,1883.7,1883.6,2.17849]
[1742163557610,1.1802,1883.8,1883.7,0.84937]
[1742163557920,1.3839,1883.8,1883.7,2.17847]
[1742163558621,1.3839,1883.8,1883.7,1.3291]
[1742163558622,2.23323,1883.8,1883.7,1.3291]
[1742163558818,0.84937,1883.7,1883.5,7.62392481]
[1742163559019,0.84942,1883.6,1883.5,0.00796284]
[1742163559320,5.28382,1883.6,1883.5,0.00796284]
[1742163568730,0.84955,1883.3,1883.2,0.84956]
[1742163569322,3.48875,1883.3,1883.2,0.84956]
[1742163571418,2.29125,1883.3,1883.2,0.84956]
[1742163574432,0.8496,1883.2,1883.1,5.78876284]
[1742163574626,1.4545,1883.2,1883.1,5.78876284]
[1742163575236,2.3041,1883.2,1883.1,5.78876284]
[1742163575533,1.4545,1883.2,1883.1,5.78876284]
[1742163576035,1.4545,1883.2,1883.1,2.25876284]
[1742163576230,2.3041,1883.2,1883.1,2.25876284]
[1742163576730,2.1242,1883.1,1882.8,0.84976]
[1742163577032,0.84976,1882.9,1882.8,1.4122]
[1742163577531,2.16356,1882.9,1882.8,1.4122]
[1742163577932,0.84978,1882.8,1882.7,0.00530856]
[1742163578139,6.60728,1882.8,1882.7,2.26732856]
[1742163578838,5.7575,1882.8,1882.7,2.26732856]
[1742163579333,3.21576284,1883.0,1882.9,0.84973]
[1742163579524,0.00796284,1883.0,1882.9,4.37973]
[1742163579727,0.00796284,1883.0,1882.9,8.99973]
[1742163580136,0.00796284,1883.0,1882.9,5.79193]
[1742163582736,2.25615284,1883.0,1882.9,1.4122]
[1742163583038,0.84978,1882.8,1882.7,4.38511856]
[1742163583539,3.43147,1882.9,1882.7,3.53530856]
[1742163583733,4.45216284,1883.0,1882.9,0.84973]
[1742163583734,0.00796284,1883.0,1882.9,0.84973]
[1742163583931,3.2078,1883.4,1883.3,0.84955]
[1742163584130,3.2078,1883.4,1883.2,0.84956]
[1742163584131,4.05732,1883.4,1883.2,0.84956]
[1742163584433,1.3206,1883.3,1883.2,0.84956]
[1742163584638,0.8496,1883.2,1883.1,0.84961]
[1742163585343,2.4975,1883.2,1883.1,0.84961]
[1742163585838,3.8181,1883.2,1883.1,0.84961]
[1742163586241,1.3206,1883.2,1883.1,0.84961]
[1742163586441,5.378,1883.2,1883.1,0.84961]
[1742163586731,5.378,1883.2,1883.0,4.7925]
[1742163586732,0.84964,1883.1,1883.0,5.64216]
[1742163586934,1.3746,1883.1,1882.7,0.00530856]
[1742163587133,2.4035,1883.0,1882.9,0.84973]
[1742163587742,2.22424,1883.1,1883.0,0.84969]
[1742163588240,0.84973,1883.0,1882.9,0.84972]
[1742163588437,2.22429,1883.0,1882.9,0.84972]
[1742163588635,4.5824,1883.0,1882.9,0.84972]
[1742163589032,1.3746,1883.0,1882.9,0.84972]
[1742163589630,4.5824,1883.0,1882.7,1.26880856]
[1742163589835,2.04784,1882.9,1882.7,0.00530856]
[1742163590032,0.84978,1882.8,1882.7,0.00530856]
[1742163590228,2.27428,1882.8,1882.7,0.00530856]
[1742163590635,1.4245,1882.8,1882.7,0.85512856]
[1742163591036,2.27428,1882.8,1882.7,0.00530856]
[1742163591244,8.03749,1882.8,1882.4,0.84994]
[1742163591433,0.84987,1882.6,1882.5,0.84991]
[1742163591833,2.04797,1882.6,1882.5,0.84991]
[1742163592039,2.04797,1882.6,1882.4,0.84993]
[1742163592244,1.4099,1882.5,1882.4,0.84993]
[1742163592429,0.84985,1882.7,1882.5,0.84989]
[1742163592632,2.25975,1882.7,1882.5,0.84989]
[1742163593043,1.4099,1882.6,1882.5,0.84989]
[1742163593639,1.4099,1882.6,1882.4,2.05084]
[1742163593840,1.4099,1882.6,1882.3,0.85794284]
[1742163594036,4.6177,1882.6,1882.3,0.00796284]
[1742163594231,5.46757,1882.6,1882.5,0.84991]
[1742163594644,4.6177,1882.6,1882.4,0.84992]
[1742163594842,1.4099,1882.5,1882.4,0.84992]
[1742163595934,2.25981,1882.5,1882.3,0.00796284]
[1742163596139,0.84996,1882.4,1882.3,0.85794284]
[1742163596339,3.49006,1882.4,1882.3,0.85794284]
[1742163596741,3.49006,1882.4,1882.3,0.00796284]
[1742163599043,6.69786,1882.4,1882.3,0.00796284]
[1742163600950,6.69786,1882.4,1882.3,0.85796284]
[1742163601146,5.8479,1882.4,1882.3,0.85796284]
[1742163601951,5.8479,1882.4,1882.3,0.00796284]
[1742163601952,6.69786,1882.4,1882.3,0.00796284]
[1742163602245,6.69786,1882.4,1882.3,2.21306284]
[1742163603439,3.2078,1882.4,1882.3,2.21306284]
[1742163603646,0.84981,1882.8,1882.4,2.12486]
[1742163603847,0.84981,1882.8,1882.5,1.2696]
[1742163604046,4.65584,1882.9,1882.5,2.11949]
[1742163604245,3.2078,1882.8,1882.5,2.11949]
[1742163604446,3.2078,1882.8,1882.4,5.61952]
[1742163604651,0.84991,1882.6,1882.5,1.335]
[1742163604853,0.84987,1882.6,1882.5,1.335]
[1742163605155,0.84987,1882.6,1882.5,2.18491]
[1742163605353,0.84987,1882.6,1882.5,1.335]
[1742163605547,2.02847,1882.6,1882.5,2.18491]
[1742163605950,2.02847,1882.6,1882.5,1.335]
[1742163606153,2.02847,1882.6,1882.5,2.18491]
[1742163606353,4.24835,1883.1,1882.5,2.18491]
[1742163606354,3.2078,1883.4,1882.5,3.835]
[1742163606556,0.84967,1883.1,1882.8,5.33223]
[1742163606755,0.84965,1883.1,1883.0,0.84966]
[1742163606949,0.84965,1883.1,1883.0,4.38066]
[1742163607156,0.84965,1883.1,1883.0,5.71566]
[1742163607459,0.84965,1883.1,1883.0,4.866]
[1742163607666,0.84976,1882.9,1882.8,0.84976]
[1742163607972,4.6651,1883.2,1882.8,0.84976]
[1742163607973,3.41452,1883.0,1882.8,2.26148]
[1742163608267,1.3609,1882.9,1882.8,2.26148]
[1742163608464,1.3609,1882.9,1882.8,0.84978]
[1742163608759,1.3609,1882.9,1882.7,3.531]
[1742163609068,3.43467,1882.9,1882.7,4.3808]
[1742163609271,1.3609,1882.9,1882.8,0.84978]
[1742163609453,5.3318,1883.2,1882.8,1.2372]
[1742163609653,0.84971,1883.0,1882.7,3.531]
[1742163609864,2.4279,1882.9,1882.8,0.84973]
[1742163610061,0.84978,1882.8,1882.7,4.38079]
[1742163610256,0.84978,1882.8,1882.7,3.531]
[1742163610759,1.4401,1882.8,1882.7,4.38082]
[1742163612868,2.28988,1882.8,1882.7,4.38082]
[1742163613261,1.4401,1882.8,1882.3,2.13296284]
[1742163613462,0.8499,1882.6,1882.5,0.8499]
[1742163613762,0.84996,1882.4,1882.3,0.00796284]
[1742163614368,2.29846,1882.4,1882.3,0.00796284]
[1742163616063,1.4485,1882.4,1882.3,0.85796284]
[1742163616970,2.29846,1882.4,1882.3,0.85796284]
[1742163618069,1.4485,1882.4,1882.3,0.85796284]
[1742163619170,2.29846,1882.4,1882.3,0.85796284]
[1742163619382,1.4485,1882.4,1882.3,0.85796284]
[1742163619874,1.2813,1882.6,1882.5,0.84991]
[1742163620172,1.18,1882.8,1882.7,0.84982]
[1742163620662,2.5013,1882.8,1882.7,0.84982]
[1742163621068,3.35108,1882.8,1882.7,0.84982]
[1742163621270,2.5013,1882.8,1882.7,0.84982]
[1742163621474,3.21576284,1883.3,1882.5,4.7573]
[1742163621664,2.17093,1883.2,1883.0,0.84966]
[1742163621868,1.3213,1883.1,1883.0,0.84966]
[1742163623872,3.21576284,1883.3,1883.2,0.8496]
[1742163624078,0.00796284,1883.3,1883.2,0.8496]
[1742163624480,1.32946284,1883.3,1883.2,0.8496]
[1742163624672,0.00796284,1883.3,1883.2,0.8496]
[1742163628385,1.1632,1883.8,1883.7,0.84937]
[1742163628576,2.5057,1883.8,1883.7,0.84937]
[1742163629381,1.3425,1883.8,1883.7,0.84937]
[1742163629781,0.00796284,1883.9,1883.8,0.84933]
[1742163629972,0.00796284,1883.9,1883.8,4.38433]
[1742163630177,1.40766284,1883.9,1883.8,4.38433]
[1742163631087,0.00796284,1883.9,1883.8,4.38433]
[1742163631886,1.43456284,1883.9,1883.7,2.27954]
[1742163632081,0.84935,1883.8,1883.6,6.74776284]
[1742163632286,2.27597,1883.7,1883.6,0.00796284]
[1742163633185,3.53407,1883.7,1883.6,0.00796284]
[1742163633886,3.53407,1883.7,1883.2,0.84956]
[1742163633887,2.6847,1883.7,1883.2,0.84956]
[1742163634085,4.05724,1883.6,1883.3,0.84953]
[1742163634278,1.4266,1883.5,1883.3,0.84953]
[1742163635083,1.4266,1883.5,1883.2,1.34206284]
[1742163635286,0.84955,1883.3,1883.2,0.00796284]
[1742163636183,3.44285,1883.3,1883.2,0.00796284]
[1742163637089,4.70535,1883.3,1883.2,0.00796284]
[1742163638078,0.84964,1883.1,1883.0,0.84965]
[1742163638275,4.05743,1883.2,1883.1,0.84964]
[1742163638484,5.44563,1883.2,1883.1,0.84964]
[1742163638679,4.596,1883.2,1882.9,1.4503]
[1742163638883,0.84975,1882.9,1882.8,0.84976]
[1742163639083,0.84978,1882.8,1882.6,0.09242181]
[1742163639383,0.84978,1882.8,1882.3,6.7418]
[1742163639384,0.84987,1882.6,1882.3,6.7418]
[1742163639584,2.23811,1882.5,1882.4,0.84992]
[1742163639888,1.3882,1882.5,1882.4,0.84992]
[1742163640089,1.3882,1882.5,1882.4,2.30022]
[1742163641279,1.3882,1882.5,1882.4,2.30026]
[1742163641786,3.2078,1882.7,1882.5,0.84988]
[1742163642088,5.47014,1882.7,1882.6,1.3771]
[1742163642679,4.6203,1882.7,1882.6,1.3771]
[1742163642880,5.47012,1882.7,1882.6,1.3771]
[1742163643687,0.00796284,1882.9,1882.7,0.8498]
[1742163643889,2.27021284,1882.9,1882.7,0.8498]
[1742163644383,3.2078,1882.8,1882.6,1.3771]
[1742163644585,1.3755,1882.8,1882.7,0.84982]
[1742163645791,1.3755,1882.8,1882.7,2.20952]
[1742163651086,0.00796284,1882.9,1882.8,0.84978]
[1742163658092,3.2078,1883.6,1882.9,4.24868]
[1742163658393,2.26811,1883.4,1883.3,0.84953]
[1742163658596,1.4186,1883.4,1883.3,0.84953]
[1742163659298,0.84955,1883.3,1883.2,0.00796284]